Cogmind - Beta 12 *** ADVENTURER MODE // 2023.07.02 @ 21:11:56 Player: Blade Result: Destroyed by G-47 Trooper with Particle Gun Performance ------------- Evolutions (1) 500 Regions Visited (3) 600 Robots Destroyed (10) 50 Value Destroyed (319) 319 Prototype IDs (2) 40 Alien Tech Used (0) 0 Bonus (0) 0 TOTAL SCORE: 1509 Bonus ------- None Cogmind --------- Core Integrity 0/400 Matter 300/300 Energy 100/100 System Corruption 0% Temperature Cool (9) Movement Core (100) Ox1 Location -9/Materials Parts ------- > --- POWER (1) -------- (None) > --- PROPULSION (3) --- (None) > --- UTILITY (3) ------ Small Storage Unit > --- WEAPON (2) ------- (None) > --- INVENTORY (8) ---- Wheel Assault Rifle Grenade Launcher Peak State ------------ > --- POWER ------------ Ion Engine > --- PROPULSION ------- Hover Unit > --- UTILITY ---------- Small Storage Unit Improved Terrain Scanner > --- WEAPON ----------- Light Assault Rifle Light Assault Rifle > --- INVENTORY -------- Wheel Assault Rifle Grenade Launcher [Rating: 8] Favorites ----------- Power Ion Engine Engine Ion Engine Propulsion Hover Unit Wheel Wheel Hover Unit Hover Unit Utility Small Storage Unit Device Improved Terrain Scanner Storage Small Storage Unit Weapon Light Assault Rifle Ballistic Gun Light Assault Rifle Build | -11 -10 -10 -9 ------- Run | Jun Mat Min Mat Slots Evolved 2 | . . . 2 Power . | . . . . Propulsion 1 | . . . 1 Utility 1 | . . . 1 Weapon . | . . . . Parts Attached 14 | 8 2 2 2 Power 2 | 2 . . . Engine 2 | 2 . . . Core . | . . . . Reactor . | . . . . Propulsion 5 | 2 2 . 1 Treads . | . . . . Leg . | . . . . Wheel 3 | 2 . . 1 Hover 2 | . 2 . . Flight . | . . . . Utility 2 | 1 . . 1 Device 1 | . . . 1 Storage 1 | 1 . . . Processor . | . . . . Hackware . | . . . . Protection . | . . . . Artifact . | . . . . Weapon 5 | 3 . 2 . Energy Gun . | . . . . Energy Cannon . | . . . . Ballistic Gun 5 | 3 . 2 . Ballistic Cannon . | . . . . Launcher . | . . . . Special Weapon . | . . . . Impact Weapon . | . . . . Slashing Weapon . | . . . . Piercing Weapon . | . . . . Special Melee Weapon . | . . . . Unidentified Prototypes . | . . . . Parts Lost 8 | . 1 1 6 Power 1 | . . . 1 Propulsion 4 | . 1 1 2 Utility 1 | . . . 1 Weapon 2 | . . . 2 Highest Loss Streak 6 | . 1 1 6 To Critical Strikes . | . . . . Average Slot Usage (%) 68 | . 75 81 52 Engine 12 | . 14 14 8 Wheel 8 | . 17 . . Hover 8 | . 1 25 8 Device 3 | . . . 8 Storage 12 | . 14 14 11 Ballistic Gun 22 | . 27 26 15 Naked Turns . | . . . . Heaviest Build 13 | 13 13 12 13 Greatest Support 26 | 26 26 12 10 Greatest Overweight (x) 2 | 1 2 1 2 Average Overweight (x) . | . . . 1 Largest Inventory Capacity 8 | 8 8 8 8 Average Capacity 7 | 6 8 8 8 Most Carried 6 | 1 6 4 4 Average Carried 2 | . 1 3 3 Final Capacity 8 | 8 8 8 8 Final Carried 5 | 1 5 3 3 Class Distribution -------------------- 100% | Mutant Dominant Class ---------------- Mutant | -10/Materials Mutant | -10/Mines Mutant | -9/Materials Resources | -11 -10 -10 -9 ----------- Run | Jun Mat Min Mat Matter Collected 399 | 264 105 30 . Remotely . | . . . . Salvage Created 363 | . 277 . 86 Parts 24 | . 19 . 5 Haulers Intercepted . | . . . . Recyclers Shooed 1 | . 1 . . Parts Field Recycled . | . . . . Retrieved Matter . | . . . . Parts Self-Destructed . | . . . . Prevented . | . . . . Kills | -11 -10 -10 -9 ------- Run | Jun Mat Min Mat Combat Hostiles Destroyed 8 | . 6 . 2 Guns 8 | . 6 . 2 Classes Destroyed 3 | . 2 . 1 Watcher 2 | . 2 . . Grunt 7 | . 6 . 1 Brawler 1 | . . . 1 Best Kill Streak 3 | . 3 . 1 Combat Bots Only 2 | . 2 . 1 Max Kills in Single Turn 2 | . 2 . 1 Gunslinging 1 | . 1 . . Exploded . | . . . . Melee . | . . . . Uniques/NPCs Destroyed . | . . . . Combat | -11 -10 -10 -9 -------- Run | Jun Mat Min Mat Damage Taken 1058 | . 274 25 759 Core 473 | . 68 . 405 Absorbed by Shields . | . . . . Core Remaining (%) 86 | 100 . 72 . Volleys Fired 36 | . 21 . 15 Largest 2 | . 2 . 2 Hottest 40 | . 40 . 40 Shots Fired 67 | . 42 . 25 Gun 67 | . 42 . 25 Cannon . | . . . . Launcher . | . . . . Special . | . . . . Kinetic 67 | . 42 . 25 Thermal . | . . . . Explosive . | . . . . Electromagnetic . | . . . . Robot Hit Streak 16 | . 16 . 10 Robot Miss Streak 3 | . 1 . 3 Penetration Max . | . . . . Secondary Targets 3 | . 3 . . Max Gunslinging Chain 1 | . 1 . . Shots Hit Robots 54 | . 36 . 18 Core Hits 22 | . 15 . 7 Critical Kills . | . . . . Critical Parts Destroyed . | . . . . Critical Strikes . | . . . . Melee Attacks . | . . . . Impact . | . . . . Slashing . | . . . . Piercing . | . . . . Sneak Attacks . | . . . . Combat Hostiles . | . . . . Follow-up Attacks . | . . . . Damage Inflicted 569 | . 390 25 154 Guns 533 | . 390 . 143 Cannons . | . . . . Explosions . | . . . . Melee . | . . . . Ramming 36 | . . 25 11 Kinetic 533 | . 390 . 143 Thermal . | . . . . Explosive . | . . . . Electromagnetic . | . . . . Impact . | . . . . Slashing . | . . . . Piercing . | . . . . Highest Corruption 2 | . . 2 . Average Corruption 2 | . . 2 . Corruption Purged . | . . . . Corruption Blocked . | . . . . Overload Shots . | . . . . Overflow Damage . | . . . . Projectiles . | . . . . Explosions . | . . . . Melee . | . . . . Knockbacks . | . . . . Impact . | . . . . Kinetic . | . . . . Secondary . | . . . . Self-Inflicted Damage 17 | . . 12 5 Shots . | . . . . Rammed 8 | . . 3 5 Targets Rammed 8 | . . 3 5 Kicked . | . . . . Crushed . | . . . . Highest Temperature 18 | . 18 . 7 Average Temperature 6 | . 8 . 3 Received Heat Transfer 642 | . 201 9 432 Siege Activations . | . . . . Robots Corrupted . | . . . . Combat Hostiles . | . . . . Parts Fried . | . . . . Impact Corruptions . | . . . . Robots Melted . | . . . . Combat Hostiles . | . . . . Parts Melted . | . . . . Heat Transferred . | . . . . Parts Sabotaged . | . . . . Parts Stolen . | . . . . Parts Stripped . | . . . . Power Chain Reactions . | . . . . Missiles Intercepted . | . . . . Alert | -11 -10 -10 -9 ------- Run | Jun Mat Min Mat Peak Influence 174 | . 174 77 120 Initial 57 | . . 57 25 Average 79 | . 101 65 74 Maximum Alert Level . | . . . . Low Security (%) 100 | 100 100 100 100 Level 1 . | . . . . Level 2 . | . . . . Level 3 . | . . . . Level 4 . | . . . . Level 5 . | . . . . High Security . | . . . . Max Security . | . . . . Squads Dispatched 1 | . . . 1 Investigation . | . . . . Extermination . | . . . . Reinforcement 1 | . . . 1 Assault . | . . . . Garrison . | . . . . Intercept . | . . . . Searches Triggered . | . . . . Construction Impeded . | . . . . Haulers Reinforced . | . . . . Active Scanning Responses . | . . . . Cargo Convoy Interrupts . | . . . . Stealth | -11 -10 -10 -9 --------- Run | Jun Mat Min Mat Distress Signals 3 | . 1 . 2 Communications Jammed . | . . . . Distress Signals . | . . . . Times Spotted 28 | . 11 2 15 Peak Tracking Total 12 | . 3 2 12 Tactical Retreats 4 | . 1 1 2 Traps | -11 -10 -10 -9 ------- Run | Jun Mat Min Mat Traps Triggered . | . . . . Indirectly . | . . . . Trap Hack Attempts . | . . . . Triggered . | . . . . Disarmed . | . . . . Reprogrammed . | . . . . Reused . | . . . . Traps Extracted . | . . . . Installed . | . . . . Triggered . | . . . . Machines | -11 -10 -10 -9 ---------- Run | Jun Mat Min Mat Machines Disabled . | . . . . Max in Single Turn . | . . . . Machines Repaired . | . . . . Machines Sabotaged . | . . . . Overloaded Fab Kills . | . . . . Hacking | -11 -10 -10 -9 --------- Run | Jun Mat Min Mat Machines Accessed 5 | . 4 . 1 Terminals 5 | . 4 . 1 Fabricators . | . . . . Repair Stations . | . . . . Recycling Units . | . . . . Scanalyzers . | . . . . Garrison Access . | . . . . Total Hacks 9 | . 8 . 1 Successful 6 | . 5 . 1 Failed 3 | . 3 . . Catastrophic 1 | . 1 . . Database Lockouts . | . . . . Manual . | . . . . Terminals 9 | . 8 . 1 Fabricators . | . . . . Repair Stations . | . . . . Recycling Units . | . . . . Scanalyzers . | . . . . Garrison Access . | . . . . Terminal Hacks 6 | . 5 . 1 Prototype ID Bank 1 | . 1 . . Branch Access Points 1 | . 1 . . Dispatch Records 1 | . 1 . . Registered Components 1 | . 1 . . Zone Layout 2 | . 1 . 1 Fabricator Hacks . | . . . . Repair Station Hacks . | . . . . Recycling Unit Hacks . | . . . . Scanalyzer . | . . . . Garrison Access Hacks . | . . . . Unauthorized Hacks . | . . . . Terminals . | . . . . Fabricators . | . . . . Repair Stations . | . . . . Recycling Units . | . . . . Scanalyzers . | . . . . Garrison Access . | . . . . Data Cores Recovered . | . . . . Used . | . . . . Hacking Detections 3 | . 3 . . Full Trace Events . | . . . . Feedback Events . | . . . . Feedback Blocked . | . . . . Robot Schematics Acquired . | . . . . Robots Built . | . . . . Authchips . | . . . . Time . | . . . . Total Robot Build Rating . | . . . . Part Schematics Acquired . | . . . . Parts Built . | . . . . Authchips . | . . . . Time . | . . . . Total Part Build Rating . | . . . . Parts Repaired . | . . . . Time . | . . . . Parts Recycled . | . . . . Recycled Matter . | . . . . Retrieved Matter . | . . . . Retrieved Components . | . . . . Parts Scanalyzed . | . . . . Part Schematics Acquired . | . . . . Parts Damaged . | . . . . Bothacking | -11 -10 -10 -9 ------------ Run | Jun Mat Min Mat Used RIF Installer . | . . . . Robots Hacked . | . . . . Non-combat . | . . . . Combat . | . . . . Robot Hacks Applied . | . . . . Relay Couplers Released . | . . . . Fabnet Peak Effective % . | . . . . Robots Rewired . | . . . . Allies Hacked . | . . . . Hacks Repelled . | . . . . Allies | -11 -10 -10 -9 -------- Run | Jun Mat Min Mat Total Allies . | . . . . Largest Group . | . . . . Highest-Rated Group . | . . . . Highest-Rated Ally . | . . . . Total Orders . | . . . . Ally Attacks . | . . . . Total Damage . | . . . . Kills . | . . . . Allies Corrupted . | . . . . Allies Melted . | . . . . Intel | -11 -10 -10 -9 ------- Run | Jun Mat Min Mat Robot Analysis Total . | . . . . Derelict Logs Recovered 1 | . . 1 . Drone Launches . | . . . . Drone Recoveries . | . . . . Exploration | -11 -10 -10 -9 ------------- Run | Jun Mat Min Mat Turns Passed 792 | 57 341 127 267 Spaces Moved 703 | 55 295 189 164 Core 48 | 12 . . 36 Treads . | . . . . Legs . | . . . . Wheels 326 | 43 258 . 25 Hover 329 | . 37 189 103 Flight . | . . . . Fastest Speed 50 | 50 56 56 80 Average Speed 93 | 81 93 62 133 Slowest Speed 185 | 100 185 120 180 Overloaded Moves . | . . . . Propulsion Burnouts . | . . . . Robots Hopped . | . . . . Cave-ins Triggered . | . . . . Exploration Rate (%) 28 | 4 53 36 20 Regions Visited 3 Branch Regions 1 Pre-discovered Areas 1 | . . 1 . Known Exits Taken 2 | . 1 1 . Unknown Exits Taken 1 | 1 . . . Scrap Searched 1 | . . 1 . Spaces Dug . | . . . . Terrain Destroyed . | . . . . Melee . | . . . . Projectile . | . . . . AOE . | . . . . Terrain Rammed . | . . . . Walls Destroyed . | . . . . Machines Disabled . | . . . . Actions | -11 -10 -10 -9 --------- Run | Jun Mat Min Mat Total 771 | 64 323 197 187 Wait 2 | . . 2 . Move 700 | 54 294 188 164 Hop . | . . . . Pick Up 5 | 1 3 . 1 Fast Attach 7 | 6 . . 1 Attach 6 | 1 2 2 1 Detach 3 | . 3 . . Swap 1 | 1 . . . Drop 1 | 1 . . . Fire 36 | . 21 . 15 Melee . | . . . . Ram 8 | . . 3 5 Kick . | . . . . Crush . | . . . . Escape Stasis . | . . . . Rewire 2 | . . 2 . Trap . | . . . . Miscellaneous . | . . . . Route ------- -11/Junkyard -10/Materials -10/Mines -9/Materials History --------- Turn | Location | Event 10 | -11/Junkyard | Discovered new exit (range 16) 58 | -11/Junkyard | Entered Materials 65 | -10/Materials | Identified exit to Mines 306 | -10/Materials | Build established: Mutant 399 | -10/Materials | Entered Mines 400 | -10/Mines | Learned location of Storage (-8) 431 | -10/Mines | Met a Derelict bent on vengeance 436 | -10/Mines | Assembled infested the area 491 | -10/Mines | Identified exit to Materials 526 | -10/Mines | Entered Materials 526 | -9/Materials | Evolved 2 slots: Propulsion x1, Utility x1 744 | -9/Materials | Core integrity fell below 50% 767 | -9/Materials | Core integrity fell below 20% 792 | -9/Materials | Lost 6 parts (1p2n1u2w) 793 | -9/Materials | Destroyed by G-47 Trooper with Particle Gun Last Messages --------------- 00703_ K-01 Serf collects debris. 00718_ Connecting with Terminal... >>Layout(Zone) Retrieving Zone 6V layout... Downloaded map data. 00721_ Hover Unit destroyed. 00721_ Critical hit (Burn: +37). 00727_ Slammed into G-47 Trooper. 00731_ Ion Engine destroyed. 00735_ Lgt. Assault Rifle destroyed. 00739_ Acquired Wheel. 00744_ K-01 Serf collects debris. 00752_ Critical hit (Burn: +37). 00757_ K-01 Serf collects debris. 00761_ Imp. Terrain Scanner destroyed. 00761_ Wheel destroyed. 00761_ K-01 Serf collects debris. 00764_ Slammed into R-06 Scavenger. 00765_ R-06 Scavenger distress signal alerts nearby ally. 00765_ K-01 Serf collects debris. Map ----- +----------------------------------------------------+ | | | | | | | ?????????????????????????????????????????????????? | | ?????????????????????????????????????????????????? | | ?????????????????????????????????????????????????? | | ?????????????????????????????????????????????????? | | ?????????????????????????????????????????????????? | | ?????????????????????????????????????????????????? | | ?????????????????????????????????????????????????? | | ?????????????????????????????????????????????????? | | ?????????????????????????????????????????????????? | | ?????????????????????????????????????????????????? | | ?????????????????????????????????????????????????? | | ?????????????????????????????????????????????????? | | ?????????????????????????????????????????????????? | | ?????????????????????????????????????????????????? | | ?????????????????????????????????????????????????? | | ?????????????????????????????????????????????????? | | ?????????????????????????????????????????????????? | | ??????????????# ?????????????????????????????????? | | ??????????????# ????????????????????? ??????????? | | ???????????#### ################## ?????????? | | ?????????? ????????? | | ?????????? ????????? | | ?????????? @ ????????? | | ?????????? ????????? | | ?????????? a ????????? | | ?????????? """" """"ss"""" """" #?????????? | | ?????????????? """" """" s"""" """?????????????? | | ???????? """" """" """" """" #?????????? | | ???????? g #?????????? | | ???????? g w #?????????? | | ?????????????##########+##############???????????? | | ??????????????????# #????????????????????? | | ??????????????????# #????????????????????? | | ???????## ####### #????????????????????? | | ?? T / %" #????????????????????? | | ???????## ### ### " #????????????????????? | | ??????????????# #?# #????????????????????? | | ??????????????# #?# #????????????????????? | | ??????????????# #?# #????????????????????? | | ????????????### ###############??????????????????? | | ????????????# % # #??????????????????? | | ???########## # #??????????????????? | | ??? # #??????????????????? | | ?? + """ """ #??????????????????? | | ??? # """ """ #??????????????????? | | ????######+## # """ """ #??????????????????? | | ???????# # # #??????????????????? | +----------------------------------------------------+ Best States ------------- Heat Dissipation 28 Energy Generation 10 Energy Capacity 250 Matter Stores 300 Matter Capacity 300 Sight Range 16 Terrain Scan Range 16 Terrain Scan Density 10 Resistance: KI 20 Resistance: TH 20 Resistance: EX 20 Resistance: EM 20 Resistance: I 20 Resistance: S 20 Resistance: P 20 Evasion (%) 53 Offensive Hacking 10 Item Schematics ----------------- None Robot Schematics ------------------ None Fabricated ------------ Nothing Alien Tech Used ----------------- None Achievements -------------- None Challenges ------------ None Game ------ Seed PlasmaCouplerProtection Manual? 0 Play Time 00:10:36 Cumulative 9.9 hours Start 2023.07.02 @ 20:43:09 End 2023.07.02 @ 21:11:56 Sessions 1 Manual Loads 0 Difficulty Adventurer Special Mode None Game No. 10 Rogue 0 Adventurer 10 Explorer 0 Win Type - Total 0 Types 0/0/0/0/0/0/0/0/0 Lore% 13 Gallery% 14 Achievement% 17 Wizard Run 0 Options --------- ASCII 0 Keyboard 0 Movement Arrows Keybinds 0 Fullscreen 1 Font 18/SmallcapsGlow Map View 76x50 Tactical HUD 1 Map Filters NONE Filters NONE Steam 1 RUN: a68edbf3-434b-4578-9f6f-1319931dd37b